[Event "Titled Tuesday Blitz August 24 2021"]
[White "Timmermans, Mark"]
[Black "Kavyev, Ruslan"]
[WhiteFideId "1026399"]
[BlackFideId "34110981"]
[WhiteElo "2460"]
[BlackElo "2172"]
[Result "1-0"]
[Round "11"]
[TimeControl "180+1"]
[Date "2021.08.24"]
[WhiteClock "0:01:35"]
[BlackClock "0:01:01"]

1. b4 {[%clk 0:03:00]}  Nf6 {[%clk 0:02:56]} 2. Bb2 {[%clk 0:03:00]}  d5 {[%clk 0:02:56]} 3. b5 {[%clk 0:02:59]}  e6 {[%clk 0:02:55]} 4. a4 {[%clk 0:02:58]}  a6 {[%clk 0:02:55]} 5. e3 {[%clk 0:02:58]}  axb5 {[%clk 0:02:55]} 6. axb5 {[%clk 0:02:58]}  Rxa1 {[%clk 0:02:55]} 7. Bxa1 {[%clk 0:02:59]}  c5 {[%clk 0:02:56]} 8. c4 {[%clk 0:02:59]}  b6 {[%clk 0:02:55]} 9. Nf3 {[%clk 0:02:59]}  Bb7 {[%clk 0:02:55]} 10. Be2 {[%clk 0:02:58]}  Be7 {[%clk 0:02:56]} 11. O-O {[%clk 0:02:58]}  O-O {[%clk 0:02:57]} 12. d4 {[%clk 0:02:58]}  Nbd7 {[%clk 0:02:50]} 13. Nbd2 {[%clk 0:02:57]}  Qa8 {[%clk 0:02:45]} 14. Bb2 {[%clk 0:02:57]}  cxd4 {[%clk 0:02:41]} 15. Bxd4 {[%clk 0:02:55]}  Rc8 {[%clk 0:02:40]} 16. cxd5 {[%clk 0:02:55]}  Nxd5 {[%clk 0:02:40]} 17. Qa1 {[%clk 0:02:53]}  Qxa1 {[%clk 0:02:38]} 18. Rxa1 {[%clk 0:02:54]}  Nc3 {[%clk 0:02:38]} 19. Bf1 {[%clk 0:02:37]}  Bf6 {[%clk 0:02:22]} 20. Ra7 {[%clk 0:02:33]}  Rb8 {[%clk 0:02:06]} 21. Nc4 {[%clk 0:02:28]}  Bxf3 {[%clk 0:02:00]} 22. gxf3 {[%clk 0:02:18]}  Bxd4 {[%clk 0:01:31]} 23. Rxd7 {[%clk 0:02:17]}  Bc5 {[%clk 0:01:25]} 24. Ne5 {[%clk 0:02:13]}  f6 {[%clk 0:01:14]} 25. Nc6 {[%clk 0:02:11]}  Re8 {[%clk 0:01:14]} 26. Bc4 {[%clk 0:01:45]}  h6 {[%clk 0:01:14]} 27. Nd8 {[%clk 0:01:38]}  Kh8 {[%clk 0:01:10]} 28. Nxe6 {[%clk 0:01:36]}  Nxb5 {[%clk 0:01:03]} 29. Nxc5 {[%clk 0:01:35]}  Na3 {[%clk 0:01:01]} 30. Bf7 {[%clk 0:01:35]} 1-0


[Site "https://www.chess.com"]

[Event "Titled Tuesday Blitz August 24 2021"]
[White "Tsaruk, Maksim"]
[Black "Avramidou, Anastasia"]
[WhiteFideId "13511173"]
[BlackFideId "4239873"]
[WhiteElo "2184"]
[BlackElo "2183"]
[Result "0-1"]
[Round "11"]
[TimeControl "180+1"]
[Date "2021.08.24"]
[WhiteClock "0:00:10"]
[BlackClock "0:00:06"]

1. Nf3 {[%clk 0:02:57]}  Nf6 {[%clk 0:02:57]} 2. c4 {[%clk 0:02:56]}  g6 {[%clk 0:02:57]} 3. Nc3 {[%clk 0:02:56]}  Bg7 {[%clk 0:02:57]} 4. g3 {[%clk 0:02:57]}  O-O {[%clk 0:02:56]} 5. Bg2 {[%clk 0:02:57]}  c5 {[%clk 0:02:55]} 6. O-O {[%clk 0:02:58]}  Nc6 {[%clk 0:02:55]} 7. b3 {[%clk 0:02:58]}  d6 {[%clk 0:02:53]} 8. Bb2 {[%clk 0:02:57]}  e5 {[%clk 0:02:53]} 9. Nd5 {[%clk 0:02:56]}  Nxd5 {[%clk 0:02:53]} 10. cxd5 {[%clk 0:02:57]}  Ne7 {[%clk 0:02:54]} 11. e4 {[%clk 0:02:57]}  f5 {[%clk 0:02:54]} 12. d3 {[%clk 0:02:57]}  f4 {[%clk 0:02:53]} 13. Nd2 {[%clk 0:02:54]}  h5 {[%clk 0:02:51]} 14. a4 {[%clk 0:02:49]}  Qe8 {[%clk 0:02:44]} 15. Nc4 {[%clk 0:02:41]}  Rf6 {[%clk 0:02:39]} 16. b4 {[%clk 0:02:33]}  b6 {[%clk 0:02:25]} 17. a5 {[%clk 0:02:32]}  b5 {[%clk 0:02:24]} 18. bxc5 {[%clk 0:01:41]}  bxc4 {[%clk 0:02:21]} 19. cxd6 {[%clk 0:01:42]}  Rxd6 {[%clk 0:02:21]} 20. dxc4 {[%clk 0:01:43]}  g5 {[%clk 0:02:15]} 21. c5 {[%clk 0:01:43]}  Rh6 {[%clk 0:02:15]} 22. Qb3 {[%clk 0:01:32]}  Kh7 {[%clk 0:02:06]} 23. Rfc1 {[%clk 0:01:15]}  h4 {[%clk 0:01:49]} 24. c6 {[%clk 0:01:08]}  hxg3 {[%clk 0:01:44]} 25. hxg3 {[%clk 0:00:58]}  Ba6 {[%clk 0:01:36]} 26. g4 {[%clk 0:00:50]}  Rh4 {[%clk 0:01:23]} 27. f3 {[%clk 0:00:48]}  Rb8 {[%clk 0:01:13]} 28. Qc2 {[%clk 0:00:42]}  Bb5 {[%clk 0:01:08]} 29. Ba3 {[%clk 0:00:37]}  Rc8 {[%clk 0:00:54]} 30. Qc5 {[%clk 0:00:36]}  Nxc6 {[%clk 0:00:35]} 31. Qxb5 {[%clk 0:00:36]}  Nd4 {[%clk 0:00:35]} 32. Qxe8 {[%clk 0:00:36]}  Rxe8 {[%clk 0:00:36]} 33. Kf2 {[%clk 0:00:36]}  Nb3 {[%clk 0:00:33]} 34. d6 {[%clk 0:00:26]}  Rh6 {[%clk 0:00:29]} 35. d7 {[%clk 0:00:24]}  Rd8 {[%clk 0:00:23]} 36. Rd1 {[%clk 0:00:07]}  Nd4 {[%clk 0:00:22]} 37. Be7 {[%clk 0:00:07]}  Rxd7 {[%clk 0:00:22]} 38. Bxg5 {[%clk 0:00:08]}  Rc6 {[%clk 0:00:19]} 39. Ra2 {[%clk 0:00:06]}  Rdc7 {[%clk 0:00:18]} 40. a6 {[%clk 0:00:05]}  Rc2+ {[%clk 0:00:18]} 41. Rxc2 {[%clk 0:00:05]}  Rxc2+ {[%clk 0:00:19]} 42. Kg1 {[%clk 0:00:06]}  Kg6 {[%clk 0:00:18]} 43. Be7 {[%clk 0:00:05]}  Ra2 {[%clk 0:00:17]} 44. Bc5 {[%clk 0:00:03]}  Rxa6 {[%clk 0:00:15]} 45. Bxd4 {[%clk 0:00:03]}  exd4 {[%clk 0:00:16]} 46. Bf1 {[%clk 0:00:04]}  Ra3 {[%clk 0:00:15]} 47. Bd3 {[%clk 0:00:03]}  Kg5 {[%clk 0:00:14]} 48. Rd2 {[%clk 0:00:03]}  Be5 {[%clk 0:00:14]} 49. Kf2 {[%clk 0:00:02]}  a5 {[%clk 0:00:14]} 50. Ke2 {[%clk 0:00:03]}  a4 {[%clk 0:00:14]} 51. Rc2 {[%clk 0:00:03]}  Rc3 {[%clk 0:00:14]} 52. Rxc3 {[%clk 0:00:02]}  dxc3 {[%clk 0:00:15]} 53. Bc4 {[%clk 0:00:02]}  a3 {[%clk 0:00:12]} 54. Kd3 {[%clk 0:00:03]}  Kh4 {[%clk 0:00:10]} 55. Kc2 {[%clk 0:00:03]}  Kg3 {[%clk 0:00:10]} 56. Kb3 {[%clk 0:00:02]}  Kxf3 {[%clk 0:00:10]} 57. g5 {[%clk 0:00:02]}  Kxe4 {[%clk 0:00:10]} 58. Kxa3 {[%clk 0:00:03]}  f3 {[%clk 0:00:10]} 59. Kb3 {[%clk 0:00:03]}  Ke3 {[%clk 0:00:09]} 60. Kc2 {[%clk 0:00:03]}  Kf2 {[%clk 0:00:06]} 61. g6 {[%clk 0:00:04]}  Kg2 {[%clk 0:00:06]} 62. Bd5 {[%clk 0:00:04]}  Kg3 {[%clk 0:00:04]} 63. Kd1 {[%clk 0:00:04]}  f2 {[%clk 0:00:04]} 64. Bc4 {[%clk 0:00:02]}  Kg2 {[%clk 0:00:05]} 65. g7 {[%clk 0:00:03]}  Bxg7 {[%clk 0:00:04]} 66. Bd5+ {[%clk 0:00:03]}  Kg1 {[%clk 0:00:05]} 67. Bc4 {[%clk 0:00:03]}  f1=Q+ {[%clk 0:00:05]} 68. Bxf1 {[%clk 0:00:04]}  Kxf1 {[%clk 0:00:06]} 69. Kc2 {[%clk 0:00:05]}  Ke2 {[%clk 0:00:06]} 70. Kc1 {[%clk 0:00:06]}  Kd3 {[%clk 0:00:06]} 71. Kb1 {[%clk 0:00:07]}  c2+ {[%clk 0:00:07]} 72. Kc1 {[%clk 0:00:08]}  Bh6+ {[%clk 0:00:06]} 73. Kb2 {[%clk 0:00:09]}  c1=Q+ {[%clk 0:00:07]} 74. Ka2 {[%clk 0:00:10]}  Qc4+ {[%clk 0:00:06]} 75. Kb2 {[%clk 0:00:09]}  Bg7+ {[%clk 0:00:06]} 76. Kb1 {[%clk 0:00:10]}  Qb3+ {[%clk 0:00:06]} 77. Kc1 {[%clk 0:00:10]}  Qc2# {[%clk 0:00:06]} 0-1


[Site "https://www.chess.com"]

[Event "Titled Tuesday Blitz August 24 2021"]
[White "Viani Antonio Dcunha"]
[Black "Wagner, Dennis"]
[WhiteFideId "5027330"]
[BlackFideId "24650684"]
[WhiteElo "2366"]
[BlackElo "2355"]
[Result "1-0"]
[Round "11"]
[TimeControl "180+1"]
[Date "2021.08.24"]
[WhiteClock "0:00:10"]
[BlackClock "0:00:12"]

1. d4 {[%clk 0:03:00]}  d5 {[%clk 0:02:57]} 2. Bf4 {[%clk 0:03:00]}  c5 {[%clk 0:02:57]} 3. e3 {[%clk 0:02:56]}  cxd4 {[%clk 0:02:57]} 4. exd4 {[%clk 0:02:56]}  Nc6 {[%clk 0:02:52]} 5. c3 {[%clk 0:02:55]}  Bf5 {[%clk 0:02:46]} 6. Nf3 {[%clk 0:02:46]}  e6 {[%clk 0:02:43]} 7. Bd3 {[%clk 0:02:45]}  Bxd3 {[%clk 0:02:43]} 8. Qxd3 {[%clk 0:02:46]}  Bd6 {[%clk 0:02:43]} 9. Bg3 {[%clk 0:02:43]}  Nge7 {[%clk 0:02:43]} 10. O-O {[%clk 0:02:41]}  O-O {[%clk 0:02:43]} 11. Nbd2 {[%clk 0:02:40]}  Bxg3 {[%clk 0:02:43]} 12. hxg3 {[%clk 0:02:39]}  Nf5 {[%clk 0:02:38]} 13. Rfe1 {[%clk 0:02:37]}  Re8 {[%clk 0:02:37]} 14. Ne5 {[%clk 0:02:35]}  Rc8 {[%clk 0:02:32]} 15. Ndf3 {[%clk 0:02:32]}  f6 {[%clk 0:02:30]} 16. Nxc6 {[%clk 0:02:31]}  bxc6 {[%clk 0:02:31]} 17. Re2 {[%clk 0:02:26]}  Qd7 {[%clk 0:02:30]} 18. Rae1 {[%clk 0:02:25]}  Nd6 {[%clk 0:02:25]} 19. Nd2 {[%clk 0:02:24]}  Re7 {[%clk 0:02:22]} 20. Nb3 {[%clk 0:02:17]}  Ne4 {[%clk 0:02:19]} 21. Nd2 {[%clk 0:02:11]}  Nxd2 {[%clk 0:02:07]} 22. Qxd2 {[%clk 0:02:12]}  Rce8 {[%clk 0:02:02]} 23. Qf4 {[%clk 0:02:11]}  Qb7 {[%clk 0:01:52]} 24. Qd6 {[%clk 0:02:06]}  Kf7 {[%clk 0:01:52]} 25. b4 {[%clk 0:02:01]}  Qc7 {[%clk 0:01:52]} 26. Qc5 {[%clk 0:01:56]}  Rb8 {[%clk 0:01:50]} 27. a4 {[%clk 0:01:55]}  Qd7 {[%clk 0:01:39]} 28. g4 {[%clk 0:01:40]}  h6 {[%clk 0:01:38]} 29. g3 {[%clk 0:01:40]}  Rd8 {[%clk 0:01:34]} 30. Kg2 {[%clk 0:01:40]}  Qb7 {[%clk 0:01:35]} 31. Re3 {[%clk 0:01:38]}  Qb6 {[%clk 0:01:33]} 32. a5 {[%clk 0:01:34]}  Qxc5 {[%clk 0:01:33]} 33. dxc5 {[%clk 0:01:31]}  e5 {[%clk 0:01:32]} 34. Rd3 {[%clk 0:01:28]}  Ke6 {[%clk 0:01:26]} 35. f4 {[%clk 0:01:26]}  Kd7 {[%clk 0:01:26]} 36. c4 {[%clk 0:01:20]}  d4 {[%clk 0:01:24]} 37. fxe5 {[%clk 0:01:13]}  fxe5 {[%clk 0:01:25]} 38. Kf3 {[%clk 0:01:04]}  Rf8+ {[%clk 0:01:17]} 39. Ke4 {[%clk 0:01:03]}  g5 {[%clk 0:01:05]} 40. Rh1 {[%clk 0:00:54]}  Rf2 {[%clk 0:00:56]} 41. Rxh6 {[%clk 0:00:51]}  Re2+ {[%clk 0:00:56]} 42. Kf5 {[%clk 0:00:45]}  Kc7 {[%clk 0:00:53]} 43. b5 {[%clk 0:00:43]}  cxb5 {[%clk 0:00:46]} 44. cxb5 {[%clk 0:00:44]}  Rc2 {[%clk 0:00:40]} 45. Rc6+ {[%clk 0:00:42]}  Kd7 {[%clk 0:00:36]} 46. Kxg5 {[%clk 0:00:39]}  Rc4 {[%clk 0:00:33]} 47. Kf5 {[%clk 0:00:31]}  e4 {[%clk 0:00:30]} 48. Rd6+ {[%clk 0:00:29]}  Kc7 {[%clk 0:00:31]} 49. b6+ {[%clk 0:00:27]}  Kc8 {[%clk 0:00:26]} 50. R3xd4 {[%clk 0:00:22]}  Rxc5+ {[%clk 0:00:22]} 51. Kf6 {[%clk 0:00:22]}  Re8 {[%clk 0:00:18]} 52. bxa7 {[%clk 0:00:20]}  Kb7 {[%clk 0:00:18]} 53. Re6 {[%clk 0:00:09]}  Rxe6+ {[%clk 0:00:14]} 54. Kxe6 {[%clk 0:00:09]}  e3 {[%clk 0:00:14]} 55. Re4 {[%clk 0:00:09]}  Rc3 {[%clk 0:00:13]} 56. g5 {[%clk 0:00:10]}  e2 {[%clk 0:00:12]} 57. Rxe2 {[%clk 0:00:09]}  Rxg3 {[%clk 0:00:13]} 58. Kf6 {[%clk 0:00:10]}  Rf3+ {[%clk 0:00:13]} 59. Kg7 {[%clk 0:00:10]}  Kxa7 {[%clk 0:00:13]} 60. g6 {[%clk 0:00:10]}  Ka6 {[%clk 0:00:13]} 61. Kh8 {[%clk 0:00:10]}  Rh3+ {[%clk 0:00:12]} 62. Kg8 {[%clk 0:00:10]}  Kxa5 {[%clk 0:00:12]} 63. g7 {[%clk 0:00:10]}  Rf3 {[%clk 0:00:13]} 64. Rh2 {[%clk 0:00:09]}  Kb6 {[%clk 0:00:12]} 65. Kh8 {[%clk 0:00:10]} 1-0


[Site "https://www.chess.com"]

[Event "Titled Tuesday Blitz August 24 2021"]
[White "Vlassov, Nikolai"]
[Black "Bortnyk, Olexandr"]
[WhiteFideId "4103360"]
[BlackFideId "14120828"]
[WhiteElo "2407"]
[BlackElo "2723"]
[Result "0-1"]
[Round "11"]
[TimeControl "180+1"]
[Date "2021.08.24"]
[WhiteClock "0:01:17"]
[BlackClock "0:02:35"]

1. e4 {[%clk 0:03:00]}  Nf6 {[%clk 0:02:57]} 2. e5 {[%clk 0:02:59]}  Nd5 {[%clk 0:02:56]} 3. d4 {[%clk 0:02:59]}  d6 {[%clk 0:02:55]} 4. c4 {[%clk 0:02:58]}  Nb6 {[%clk 0:02:55]} 5. exd6 {[%clk 0:02:59]}  exd6 {[%clk 0:02:56]} 6. Nc3 {[%clk 0:02:57]}  Be7 {[%clk 0:02:56]} 7. h3 {[%clk 0:02:56]}  O-O {[%clk 0:02:56]} 8. Nf3 {[%clk 0:02:56]}  Bf5 {[%clk 0:02:54]} 9. Be2 {[%clk 0:02:56]}  Nc6 {[%clk 0:02:48]} 10. a3 {[%clk 0:02:51]}  Bf6 {[%clk 0:02:48]} 11. O-O {[%clk 0:02:49]}  Re8 {[%clk 0:02:48]} 12. Be3 {[%clk 0:02:49]}  d5 {[%clk 0:02:48]} 13. c5 {[%clk 0:02:48]}  Nc4 {[%clk 0:02:49]} 14. Bc1 {[%clk 0:02:32]}  b6 {[%clk 0:02:47]} 15. b3 {[%clk 0:02:31]}  N4a5 {[%clk 0:02:45]} 16. Bb2 {[%clk 0:02:00]}  bxc5 {[%clk 0:02:39]} 17. dxc5 {[%clk 0:02:00]}  d4 {[%clk 0:02:40]} 18. Nxd4 {[%clk 0:01:23]}  Nxd4 {[%clk 0:02:36]} 19. b4 {[%clk 0:01:17]}  Nxe2+ {[%clk 0:02:35]} 0-1


[Site "https://www.chess.com"]

[Event "Titled Tuesday Blitz August 24 2021"]
[White "Yaran, Siar"]
[Black "Pajeken, Jakob Leon"]
[WhiteFideId "6323006"]
[BlackFideId "12942839"]
[WhiteElo "1977"]
[BlackElo "2231"]
[Result "0-1"]
[Round "11"]
[TimeControl "180+1"]
[Date "2021.08.24"]
[WhiteClock "0:00:16"]
[BlackClock "0:01:43"]

1. e4 {[%clk 0:03:00]}  e5 {[%clk 0:02:59]} 2. f4 {[%clk 0:02:58]}  exf4 {[%clk 0:02:59]} 3. Nf3 {[%clk 0:02:58]}  Nf6 {[%clk 0:02:59]} 4. e5 {[%clk 0:02:58]}  Nh5 {[%clk 0:02:59]} 5. d4 {[%clk 0:02:59]}  g6 {[%clk 0:02:57]} 6. Nc3 {[%clk 0:02:49]}  Bg7 {[%clk 0:02:55]} 7. Nd5 {[%clk 0:02:35]}  d6 {[%clk 0:02:40]} 8. Nxf4 {[%clk 0:02:25]}  Bg4 {[%clk 0:02:34]} 9. h3 {[%clk 0:02:21]}  Bxf3 {[%clk 0:02:32]} 10. Qxf3 {[%clk 0:02:22]}  Qh4+ {[%clk 0:02:32]} 11. Kd1 {[%clk 0:01:51]}  Nxf4 {[%clk 0:02:18]} 12. Bxf4 {[%clk 0:01:50]}  dxe5 {[%clk 0:02:13]} 13. dxe5 {[%clk 0:01:14]}  Nc6 {[%clk 0:02:10]} 14. Bd3 {[%clk 0:01:08]}  O-O {[%clk 0:02:01]} 15. Re1 {[%clk 0:01:02]}  Rae8 {[%clk 0:01:53]} 16. Bg3 {[%clk 0:00:31]}  Qb4 {[%clk 0:01:48]} 17. Kc1 {[%clk 0:00:23]}  Nxe5 {[%clk 0:01:44]} 18. Bxe5 {[%clk 0:00:16]}  Qxe1+ {[%clk 0:01:43]} 0-1


[Site "https://www.chess.com"]

[Event "Titled Tuesday Blitz August 24 2021"]
[White "Yoo, Christopher Woojin"]
[Black "Polivanov, Anatoliy"]
[WhiteFideId "30909694"]
[BlackFideId "14109468"]
[WhiteElo "2105"]
[BlackElo "2472"]
[Result "0-1"]
[Round "11"]
[TimeControl "180+1"]
[Date "2021.08.24"]
[WhiteClock "0:00:01"]
[BlackClock "0:00:27"]

1. e4 {[%clk 0:03:00]}  c5 {[%clk 0:02:59]} 2. Nf3 {[%clk 0:03:00]}  g6 {[%clk 0:02:59]} 3. c3 {[%clk 0:02:56]}  Bg7 {[%clk 0:02:58]} 4. d4 {[%clk 0:02:56]}  cxd4 {[%clk 0:02:58]} 5. cxd4 {[%clk 0:02:56]}  d5 {[%clk 0:02:57]} 6. e5 {[%clk 0:02:57]}  a6 {[%clk 0:02:57]} 7. Nc3 {[%clk 0:02:56]}  Nc6 {[%clk 0:02:57]} 8. h3 {[%clk 0:02:54]}  f6 {[%clk 0:02:56]} 9. Bf4 {[%clk 0:02:51]}  Nh6 {[%clk 0:02:48]} 10. Qd2 {[%clk 0:02:44]}  Nf7 {[%clk 0:02:39]} 11. exf6 {[%clk 0:02:39]}  exf6 {[%clk 0:02:38]} 12. Be2 {[%clk 0:02:37]}  O-O {[%clk 0:02:38]} 13. O-O {[%clk 0:02:35]}  Be6 {[%clk 0:02:30]} 14. Rfe1 {[%clk 0:02:34]}  Re8 {[%clk 0:02:22]} 15. Na4 {[%clk 0:02:29]}  Nd6 {[%clk 0:02:21]} 16. Nc5 {[%clk 0:02:28]}  Ne4 {[%clk 0:02:19]} 17. Qc2 {[%clk 0:02:02]}  Nxc5 {[%clk 0:02:18]} 18. Qxc5 {[%clk 0:02:01]}  Bf5 {[%clk 0:02:12]} 19. Bf1 {[%clk 0:01:39]}  Be4 {[%clk 0:02:08]} 20. Nd2 {[%clk 0:01:39]}  f5 {[%clk 0:02:07]} 21. Nxe4 {[%clk 0:01:36]}  fxe4 {[%clk 0:02:03]} 22. Bd6 {[%clk 0:01:16]}  Nxd4 {[%clk 0:01:53]} 23. Qxd5+ {[%clk 0:01:14]}  Kh8 {[%clk 0:01:53]} 24. Rad1 {[%clk 0:00:56]}  Nf5 {[%clk 0:01:52]} 25. Bc5 {[%clk 0:00:49]}  Qxd5 {[%clk 0:01:44]} 26. Rxd5 {[%clk 0:00:50]}  e3 {[%clk 0:01:35]} 27. fxe3 {[%clk 0:00:47]}  Bxb2 {[%clk 0:01:34]} 28. Rb1 {[%clk 0:00:45]}  Bf6 {[%clk 0:01:20]} 29. Rxb7 {[%clk 0:00:37]}  Rac8 {[%clk 0:01:10]} 30. Bxa6 {[%clk 0:00:30]}  Nxe3 {[%clk 0:01:06]} 31. Bxe3 {[%clk 0:00:29]}  Rxe3 {[%clk 0:01:05]} 32. Rdd7 {[%clk 0:00:27]}  Ra3 {[%clk 0:00:48]} 33. Bd3 {[%clk 0:00:12]}  Rxa2 {[%clk 0:00:41]} 34. Rxh7+ {[%clk 0:00:12]}  Kg8 {[%clk 0:00:41]} 35. Rhc7 {[%clk 0:00:05]}  Bd4+ {[%clk 0:00:37]} 36. Kh1 {[%clk 0:00:01]}  Rxc7 {[%clk 0:00:27]} 37. Rxc7 {[%clk 0:00:01]}  Ra1+ {[%clk 0:00:27]} 0-1


[Site "https://www.chess.com"]

[Event "Titled Tuesday Blitz August 24 2021"]
[White "Zhigalko, Sergei"]
[Black "Svane, Frederik"]
[WhiteFideId "13502956"]
[BlackFideId "12923044"]
[WhiteElo "2662"]
[BlackElo "2459"]
[Result "1-0"]
[Round "11"]
[TimeControl "180+1"]
[Date "2021.08.24"]
[WhiteClock "0:00:06"]
[BlackClock "0:00:04"]

1. e4 {[%clk 0:03:00]}  c5 {[%clk 0:02:59]} 2. Nf3 {[%clk 0:03:00]}  e6 {[%clk 0:03:00]} 3. c3 {[%clk 0:03:01]}  d5 {[%clk 0:03:00]} 4. e5 {[%clk 0:03:01]}  Bd7 {[%clk 0:02:57]} 5. d4 {[%clk 0:03:02]}  Qb6 {[%clk 0:02:57]} 6. Be2 {[%clk 0:03:02]}  Bb5 {[%clk 0:02:58]} 7. Bxb5+ {[%clk 0:03:02]}  Qxb5 {[%clk 0:02:59]} 8. a4 {[%clk 0:03:03]}  Qa6 {[%clk 0:02:58]} 9. dxc5 {[%clk 0:02:55]}  Bxc5 {[%clk 0:02:58]} 10. b4 {[%clk 0:02:56]}  Bf8 {[%clk 0:02:57]} 11. Na3 {[%clk 0:02:56]}  Nd7 {[%clk 0:02:53]} 12. Nb5 {[%clk 0:02:55]}  Rc8 {[%clk 0:02:50]} 13. O-O {[%clk 0:02:55]}  Nh6 {[%clk 0:02:40]} 14. Bxh6 {[%clk 0:02:52]}  gxh6 {[%clk 0:02:41]} 15. Qd2 {[%clk 0:02:51]}  Rg8 {[%clk 0:02:39]} 16. Rfe1 {[%clk 0:02:41]}  Qb6 {[%clk 0:02:28]} 17. Nfd4 {[%clk 0:02:33]}  a6 {[%clk 0:02:19]} 18. a5 {[%clk 0:02:25]}  Qd8 {[%clk 0:02:19]} 19. Nd6+ {[%clk 0:02:25]}  Bxd6 {[%clk 0:02:19]} 20. exd6 {[%clk 0:02:26]}  Qf6 {[%clk 0:02:01]} 21. Re3 {[%clk 0:02:19]}  Ne5 {[%clk 0:01:58]} 22. Qe2 {[%clk 0:01:59]}  Nc4 {[%clk 0:01:45]} 23. Rf3 {[%clk 0:01:58]}  Qe5 {[%clk 0:01:45]} 24. d7+ {[%clk 0:01:51]}  Kxd7 {[%clk 0:01:44]} 25. Rxf7+ {[%clk 0:01:52]}  Kd6 {[%clk 0:01:44]} 26. Rxb7 {[%clk 0:01:05]}  Qxe2 {[%clk 0:01:38]} 27. Nxe2 {[%clk 0:01:01]}  Rc7 {[%clk 0:01:37]} 28. Rxc7 {[%clk 0:00:52]}  Kxc7 {[%clk 0:01:38]} 29. Nd4 {[%clk 0:00:49]}  Kd6 {[%clk 0:01:17]} 30. Re1 {[%clk 0:00:41]}  e5 {[%clk 0:01:17]} 31. Nf5+ {[%clk 0:00:41]}  Ke6 {[%clk 0:01:17]} 32. Nd4+ {[%clk 0:00:31]}  Kd6 {[%clk 0:01:16]} 33. Nb3 {[%clk 0:00:31]}  Rc8 {[%clk 0:00:47]} 34. f3 {[%clk 0:00:21]}  Rc6 {[%clk 0:00:36]} 35. h4 {[%clk 0:00:12]}  Na3 {[%clk 0:00:27]} 36. Nc5 {[%clk 0:00:12]}  Nc4 {[%clk 0:00:22]} 37. Nd3 {[%clk 0:00:06]}  Na3 {[%clk 0:00:15]} 38. Nxe5 {[%clk 0:00:04]}  Rxc3 {[%clk 0:00:15]} 39. Nf7+ {[%clk 0:00:04]}  Kc6 {[%clk 0:00:16]} 40. Re6+ {[%clk 0:00:04]}  Kb5 {[%clk 0:00:14]} 41. Rb6+ {[%clk 0:00:04]}  Kc4 {[%clk 0:00:12]} 42. Nd6+ {[%clk 0:00:02]}  Kb3 {[%clk 0:00:10]} 43. b5 {[%clk 0:00:02]}  Nxb5 {[%clk 0:00:07]} 44. Nxb5 {[%clk 0:00:02]}  axb5 {[%clk 0:00:08]} 45. Rxb5+ {[%clk 0:00:02]}  Kc4 {[%clk 0:00:08]} 46. Rb7 {[%clk 0:00:02]}  Ra3 {[%clk 0:00:07]} 47. Rc7+ {[%clk 0:00:02]}  Kb3 {[%clk 0:00:05]} 48. Rxh7 {[%clk 0:00:03]}  d4 {[%clk 0:00:05]} 49. Rxh6 {[%clk 0:00:03]}  d3 {[%clk 0:00:06]} 50. Rd6 {[%clk 0:00:04]}  Kc2 {[%clk 0:00:06]} 51. Kh2 {[%clk 0:00:02]}  d2 {[%clk 0:00:06]} 52. Rxd2+ {[%clk 0:00:01]}  Kxd2 {[%clk 0:00:06]} 53. Kg3 {[%clk 0:00:01]}  Rxa5 {[%clk 0:00:07]} 54. Kf4 {[%clk 0:00:02]}  Kd3 {[%clk 0:00:05]} 55. g4 {[%clk 0:00:01]}  Kd4 {[%clk 0:00:06]} 56. h5 {[%clk 0:00:02]}  Kd5 {[%clk 0:00:05]} 57. Kf5 {[%clk 0:00:02]}  Ra8 {[%clk 0:00:06]} 58. h6 {[%clk 0:00:02]}  Rf8+ {[%clk 0:00:06]} 59. Kg6 {[%clk 0:00:03]}  Ke6 {[%clk 0:00:06]} 60. h7 {[%clk 0:00:03]}  Ke7 {[%clk 0:00:01]} 61. g5 {[%clk 0:00:04]}  Re8 {[%clk 0:00:01]} 62. Kg7 {[%clk 0:00:04]}  Rf8 {[%clk 0:00:02]} 63. h8=Q {[%clk 0:00:04]}  Rf7+ {[%clk 0:00:02]} 64. Kg6 {[%clk 0:00:05]}  Rxf3 {[%clk 0:00:03]} 65. Qh7+ {[%clk 0:00:05]}  Ke6 {[%clk 0:00:04]} 66. Qh5 {[%clk 0:00:06]}  Ke7 {[%clk 0:00:04]} 67. Qxf3 {[%clk 0:00:06]} 1-0


[Site "https://www.chess.com"]

[Event "Titled Tuesday Blitz August 24 2021"]
[White "davigator"]
[Black "Perez Rodriguez, Luis Manuel"]
[BlackFideId "3503364"]
[WhiteElo "2400"]
[BlackElo "2429"]
[Result "0-1"]
[Round "11"]
[TimeControl "180+1"]
[Date "2021.08.24"]
[WhiteClock "0:00:26"]
[BlackClock "0:00:27"]

1. e4 {[%clk 0:03:00]}  e5 {[%clk 0:02:59]} 2. Nf3 {[%clk 0:03:00]}  Nc6 {[%clk 0:02:59]} 3. Bb5 {[%clk 0:02:59]}  a6 {[%clk 0:03:00]} 4. Ba4 {[%clk 0:02:59]}  Nf6 {[%clk 0:03:00]} 5. O-O {[%clk 0:02:57]}  b5 {[%clk 0:03:00]} 6. Bb3 {[%clk 0:02:57]}  Be7 {[%clk 0:03:01]} 7. Re1 {[%clk 0:02:56]}  O-O {[%clk 0:03:02]} 8. a4 {[%clk 0:02:56]}  Bb7 {[%clk 0:03:00]} 9. d3 {[%clk 0:02:55]}  Re8 {[%clk 0:02:59]} 10. Ng5 {[%clk 0:02:52]}  d5 {[%clk 0:02:58]} 11. exd5 {[%clk 0:02:50]}  Nd4 {[%clk 0:02:58]} 12. Ba2 {[%clk 0:02:23]}  Bxd5 {[%clk 0:02:46]} 13. Bxd5 {[%clk 0:02:20]}  Qxd5 {[%clk 0:02:33]} 14. Nc3 {[%clk 0:02:18]}  Qc5 {[%clk 0:02:15]} 15. axb5 {[%clk 0:02:14]}  axb5 {[%clk 0:02:13]} 16. Rxa8 {[%clk 0:02:13]}  Rxa8 {[%clk 0:02:14]} 17. Nge4 {[%clk 0:02:13]}  Nxe4 {[%clk 0:02:09]} 18. dxe4 {[%clk 0:02:10]}  Ra1 {[%clk 0:02:01]} 19. Nd5 {[%clk 0:02:04]}  Bg5 {[%clk 0:01:50]} 20. b4 {[%clk 0:02:04]}  Qxc2 {[%clk 0:01:37]} 21. Qg4 {[%clk 0:01:38]}  h6 {[%clk 0:00:58]} 22. Bd2 {[%clk 0:01:37]}  Rxe1+ {[%clk 0:00:49]} 23. Bxe1 {[%clk 0:01:37]}  Qc1 {[%clk 0:00:33]} 24. Kf1 {[%clk 0:01:36]}  f5 {[%clk 0:00:30]} 25. exf5 {[%clk 0:00:36]}  Qc4+ {[%clk 0:00:28]} 26. Kg1 {[%clk 0:00:31]}  Ne2+ {[%clk 0:00:28]} 27. Kh1 {[%clk 0:00:26]}  Qxg4 {[%clk 0:00:27]} 0-1


[Site "https://www.chess.com"]